bitfinex/quotes_SOLUSD_20250924
["timestamp","ask_amount","ask_price","bid_price","bid_amount"]
[1758711897266,1.18470081,211.37,211.36,3.01107295]
[1758711897463,1.18470081,211.37,211.36,2.33107295]
[1758711897766,1.18470081,211.37,211.36,3.01107295]
[1758711898259,1.18470081,211.37,211.36,2.33107295]
[1758711898483,1.18470081,211.37,211.34,3.01107295]
[1758711898683,1.18470081,211.36,211.34,3.01107295]
[1758711898884,1.18470081,211.35,211.34,2.33107295]
[1758711899378,1.18470081,211.35,211.34,2.99107295]
[1758711900786,1.18470081,211.35,211.34,2.33107295]
[1758711901283,1.88470081,211.35,211.32,26.0]
[1758711901476,1.18470081,211.34,211.33,26.0]
[1758711902277,1.18470081,211.34,211.31,2.33107295]
[1758711902577,1.88470052,211.33,211.31,2.33107295]
[1758711902784,0.7,211.33,211.29,2.33107295]
[1758711903171,1.8847823,211.32,211.29,2.33107295]
[1758711903371,0.7,211.32,211.29,2.33107295]
[1758711903683,0.7,211.34,211.29,2.33107295]
[1758711903878,1.88480062,211.33,211.29,2.33107295]
[1758711904072,1.18480062,211.32,211.29,2.99107295]
[1758711904282,1.18482743,211.31,211.29,2.99107295]
[1758711904482,0.7,211.33,211.29,2.99107295]
[1758711904683,7.85020297,211.37,211.28,26.0]
[1758711904684,0.7,211.36,211.31,2.33107295]
[1758711904986,1.88474599,211.35,211.31,2.99107295]
[1758711905185,1.18474599,211.34,211.31,2.99107295]
[1758711905368,0.7,211.37,211.32,0.66]
[1758711905579,1.88468171,211.36,211.32,0.66]
[1758711905881,1.18468171,211.35,211.32,0.66]
[1758711906196,1.18468171,211.34,211.32,0.66]
[1758711906491,0.7,211.36,211.32,0.66]
[1758711906796,1.18466406,211.35,211.32,0.66]
[1758711906977,1.18466406,211.34,211.32,0.66]
[1758711907179,0.7,211.36,211.32,0.66]
[1758711907473,1.18466406,211.35,211.32,0.66]
[1758711907674,1.18466406,211.34,211.32,0.66]
[1758711907861,0.7,211.36,211.31,2.33107295]
[1758711908064,1.88466406,211.35,211.31,2.33107295]
[1758711908374,1.88466406,211.34,211.31,2.33107295]
[1758711908683,1.18466406,211.33,211.31,2.33107295]
[1758711908881,0.7,211.34,211.31,2.33107295]
[1758711909080,1.18470918,211.33,211.31,2.33107295]
[1758711909385,0.7,211.34,211.31,2.33107295]
[1758711909584,1.18470935,211.33,211.31,2.33107295]
[1758711909767,0.7,211.37,211.32,2.99107295]
[1758711909967,1.88465573,211.36,211.32,2.99107295]
[1758711910274,1.18465573,211.35,211.32,2.99107295]
[1758711910473,1.18465573,211.34,211.32,2.99107295]
[1758711910676,0.7,211.36,211.32,2.99107295]
[1758711910873,1.1846554,211.35,211.32,2.99107295]
[1758711911074,1.1846554,211.34,211.32,2.99107295]
[1758711911293,0.7,211.36,211.32,2.99107295]
[1758711911498,1.18465507,211.35,211.32,2.99107295]
[1758711911679,1.18465507,211.34,211.32,2.99107295]
[1758711911987,0.7,211.36,211.32,2.33107295]
[1758711912175,1.88465507,211.35,211.32,2.33107295]
[1758711912364,1.88465507,211.34,211.3,2.33107295]
[1758711912565,1.88465507,211.33,211.29,26.0]
[1758711912877,1.18465507,211.32,211.29,26.0]
[1758711913079,0.7,211.33,211.28,28.99107295]
[1758711913281,1.18479112,211.32,211.29,0.66]
[1758711913478,0.7,211.33,211.3,2.33107295]
[1758711913680,1.18479079,211.32,211.3,2.99107295]
[1758711913982,0.7,211.35,211.3,2.99107295]
[1758711914167,1.88479096,211.34,211.3,2.33107295]
[1758711914369,1.18479096,211.33,211.3,2.33107295]
[1758711914561,1.18479096,211.32,211.3,2.33107295]
[1758711914776,4.6621459,211.37,211.3,2.33107295]
[1758711914982,4.6621459,211.37,211.3,2.99107295]
[1758711914983,0.7,211.35,211.3,2.99107295]
[1758711915183,1.88475465,211.34,211.3,2.99107295]
[1758711915486,1.18475465,211.33,211.3,2.99107295]
[1758711915692,0.7,211.34,211.3,2.99107295]
[1758711915885,1.18471818,211.33,211.3,2.99107295]
[1758711916191,0.7,211.34,211.3,2.99107295]
[1758711916389,1.18470935,211.33,211.3,2.99107295]
[1758711916593,0.7,211.34,211.3,2.99107295]
[1758711916785,1.18470935,211.33,211.3,2.99107295]
[1758711916984,0.7,211.34,211.3,2.99107295]
[1758711917185,1.18470952,211.33,211.3,2.99107295]
[1758711917372,0.7,211.34,211.3,2.33107295]
[1758711917572,1.18470952,211.33,211.3,2.99107295]
[1758711917775,0.7,211.34,211.3,2.99107295]
[1758711917973,1.18470935,211.33,211.3,2.99107295]
[1758711918170,0.7,211.34,211.3,2.33107295]
[1758711918498,1.18470951,211.33,211.31,0.66]
[1758711918793,0.7,211.36,211.31,0.66]
[1758711918975,0.7,211.35,211.31,0.66]
[1758711919172,1.18470884,211.34,211.3,2.33107295]
[1758711919379,1.18470884,211.33,211.3,2.99107295]
[1758711919575,0.7,211.34,211.3,2.99107295]
[1758711919893,1.18470934,211.33,211.3,2.99107295]
[1758711920097,0.7,211.34,211.3,2.99107295]
[1758711920282,1.18470934,211.33,211.3,2.99107295]
[1758711920482,0.7,211.34,211.3,2.99107295]
[1758711920698,1.18470951,211.33,211.32,2.33107295]
[1758711920903,0.71,211.37,211.32,3.01107295]
[1758711921079,1.18465555,211.36,211.33,0.68]
[1758711921374,1.18465555,211.35,211.33,0.68]
[1758711921574,1.18465555,211.34,211.33,0.68]
[1758711921796,1.18465555,211.36,211.33,0.68]
[1758711922002,1.18465555,211.35,211.34,3.01107295]
[1758711923887,1.18465555,211.35,211.34,2.33107295]
[1758711925005,1.18465555,211.35,211.34,3.01107295]
[1758711926302,1.18465555,211.35,211.32,0.68]
[1758711926487,0.71,211.37,211.34,2.33107295]
[1758711926682,1.18464655,211.36,211.34,2.33107295]
[1758711926884,1.18464655,211.35,211.34,2.33107295]
[1758711927402,1.18464655,211.35,211.3,0.14216157]
[1758711927584,0.71,211.38,211.34,2.33107295]
[1758711927784,1.18463822,211.37,211.34,2.33107295]
[1758711927988,1.89463822,211.36,211.33,2.33107295]
[1758711928303,1.89463822,211.35,211.32,2.33107295]
[1758711928482,1.18463822,211.34,211.32,2.33107295]
[1758711928689,0.71,211.35,211.32,2.33107295]
[1758711928895,1.18465538,211.34,211.32,2.33107295]
[1758711929093,0.71,211.35,211.32,2.33107295]
[1758711929296,1.18465538,211.34,211.32,2.33107295]
[1758711929520,0.71,211.35,211.32,2.33107295]
[1758711929686,1.18465538,211.34,211.32,2.33107295]
[1758711929985,0.71,211.35,211.32,2.33107295]
[1758711930180,1.18465521,211.34,211.32,2.33107295]
[1758711930480,0.71,211.35,211.32,2.33107295]
[1758711930796,1.18465521,211.34,211.32,2.33107295]
[1758711931093,0.71,211.35,211.32,2.33107295]
[1758711931300,1.18465521,211.34,211.32,2.33107295]
[1758711931486,0.71,211.38,211.32,2.33107295]
[1758711931799,1.18465471,211.37,211.36,2.33107295]
[1758711934910,1.89465471,211.37,211.32,2.33107295]
[1758711935082,1.89465471,211.36,211.32,2.33107295]
[1758711935283,1.89465471,211.35,211.32,2.33107295]
[1758711935490,1.18465471,211.34,211.32,2.33107295]
[1758711935807,1.18465471,211.33,211.32,2.33107295]
[1758711936404,1.18465471,211.33,211.32,3.01107295]
[1758711937006,0.71,211.37,211.32,3.01107295]
[1758711937323,1.18469118,211.36,211.32,2.33107295]
[1758711937503,1.18469118,211.35,211.33,2.33107295]
[1758711937708,1.18469118,211.34,211.33,2.33107295]
[1758711938204,1.18469118,211.34,211.33,3.01107295]
[1758711940311,1.18469118,211.34,211.33,2.33107295]
[1758711941306,1.18469118,211.34,211.33,3.01107295]
[1758711941694,1.18469118,211.34,211.33,0.68]
[1758711941899,1.18469118,211.34,211.33,3.01107295]
[1758711942299,1.18469118,211.34,211.33,2.33107295]
[1758711942702,1.18469118,211.34,211.33,1.49207682]
[1758711943702,0.71,211.37,211.33,2.17207682]
[1758711943903,1.89457346,211.36,211.33,1.49207682]
[1758711944102,1.18457346,211.35,211.33,1.49207682]
[1758711944303,0.71,211.36,211.33,1.49207682]
[1758711944504,1.18457362,211.35,211.33,1.49207682]
[1758711944698,0.71,211.36,211.33,1.49207682]
[1758711944903,1.18457379,211.35,211.33,1.49207682]
[1758711945105,0.71,211.36,211.33,1.49207682]
[1758711945306,1.18457362,211.35,211.33,1.49207682]
[1758711945500,0.71,211.39,211.34,2.17207682]
[1758711945807,1.89457379,211.38,211.34,1.49207682]
[1758711945989,1.89457379,211.37,211.34,1.49207682]
[1758711946194,1.18457379,211.36,211.34,1.49207682]
[1758711946390,1.18457379,211.35,211.34,1.49207682]
[1758711950831,0.71,211.37,211.34,1.49207682]
[1758711951128,3.19084348,211.44,211.34,2.21207682]
[1758711951129,1.18456499,211.36,211.34,2.21207682]
[1758711951318,0.71,211.38,211.34,2.21207682]
[1758711951522,1.18456449,211.37,211.34,2.21207682]
[1758711951727,1.18456449,211.36,211.34,1.49207682]
[1758711951933,0.71,211.37,211.34,1.49207682]
[1758711952226,1.18456482,211.36,211.34,1.49207682]
[1758711952414,0.71,211.37,211.34,1.49207682]
[1758711952721,1.18456482,211.36,211.34,1.49207682]
[1758711952896,0.71,211.37,211.34,1.49207682]
[1758711953102,1.18456466,211.36,211.34,1.49207682]
[1758711953320,0.71,211.37,211.34,1.49207682]
[1758711953525,1.18456466,211.36,211.34,1.49207682]
[1758711953696,0.71,211.37,211.34,1.49207682]
[1758711953900,1.18456466,211.36,211.34,1.49207682]
[1758711954101,0.71,211.37,211.34,1.49207682]
[1758711954419,1.18456482,211.36,211.34,1.49207682]
[1758711954619,0.71,211.37,211.34,1.49207682]
[1758711954821,1.18456482,211.36,211.34,1.49207682]
[1758711955127,0.71,211.37,211.34,1.49207682]
[1758711955327,1.18456466,211.36,211.34,1.49207682]
[1758711955528,0.71,211.37,211.34,1.49207682]
[1758711955830,1.18456466,211.36,211.34,1.49207682]
[1758711956030,0.71,211.37,211.34,1.49207682]
[1758711956229,1.18456466,211.36,211.34,1.49207682]
[1758711956531,0.71,211.42,211.35,0.72]
[1758711956823,1.18444829,211.41,211.4,1.49207682]
[1758711957369,0.71,211.44,211.4,1.49207682]
[1758711957504,13.59559401,211.49,211.36,13.59559401]
[1758711957505,1.18429204,211.43,211.42,1.49207682]
[1758711958829,1.89429204,211.43,211.42,1.49207682]
[1758711959035,1.89429204,211.43,211.37,13.59559401]
[1758711959327,3.38636886,211.42,211.35,1.49207682]
[1758711959540,1.87429204,211.41,211.35,1.49207682]
[1758711959708,1.87429204,211.4,211.35,1.49207682]
[1758711960032,1.87429204,211.39,211.35,1.49207682]
[1758711960229,1.87429204,211.38,211.35,1.49207682]
[1758711960408,1.18429204,211.37,211.3,7.09599618]
[1758711960721,1.18429204,211.36,211.33,1.49207682]
[1758711960902,1.18429204,211.35,211.33,1.49207682]
[1758711961115,0.69,211.4,211.34,0.71]
[1758711961446,1.87458245,211.39,211.36,1.49207682]
[1758711961632,0.69,211.41,211.38,1.49207682]
[1758711961817,1.87454602,211.4,211.36,0.71]
[1758711962018,1.18454602,211.39,211.38,1.49207682]
[1758711962228,1.87454602,211.39,211.38,1.49207682]
[1758711962429,1.18454602,211.39,211.38,1.49207682]
[1758711962841,1.87454602,211.39,211.36,1.49207682]
[1758711963040,1.18454602,211.38,211.36,1.49207682]
[1758711963342,0.69,211.39,211.34,2.20207682]
[1758711963537,1.18448306,211.38,211.34,2.20207682]
[1758711963847,0.69,211.39,211.34,2.20207682]
[1758711964049,1.18448323,211.38,211.34,2.20207682]
[1758711964233,1.18454632,211.37,211.34,2.20207682]
[1758711964443,0.69,211.39,211.34,2.20207682]
[1758711964747,1.87452834,211.38,211.32,1.49207682]
[1758711964922,1.87452834,211.37,211.32,1.49207682]
[1758711965246,1.87452834,211.36,211.32,1.49207682]
[1758711965425,0.69,211.36,211.32,2.20207682]
[1758711966150,1.18461009,211.35,211.32,0.71]
[1758711966724,1.18461009,211.35,211.3,27.49207682]
[1758711966929,1.87461009,211.35,211.31,0.71]
[1758711967249,14.28559401,211.4,211.32,2.20207682]
[1758711967555,2.6766959,211.39,211.3,26.71]
[1758711967735,1.87461908,211.38,211.3,28.20207682]
[1758711968053,1.87461908,211.37,211.3,28.20207682]
[1758711968350,1.18461908,211.36,211.3,28.20207682]
[1758711968517,1.18461908,211.35,211.32,1.49207682]
[1758711968722,0.69,211.4,211.33,0.71]
[1758711968723,2.18207682,211.4,211.33,0.71]
[1758711968935,1.1846176,211.39,211.33,0.71]
[1758711969130,1.1846176,211.38,211.33,0.71]
[1758711969342,1.1846176,211.37,211.33,0.71]
[1758711969546,13.73775558,211.44,211.33,0.71]
[1758711969547,2.18207682,211.41,211.33,0.71]
[1758711969841,1.1845272,211.4,211.33,0.71]
[1758711970047,1.1845272,211.39,211.33,0.71]
[1758711970233,1.1845272,211.38,211.33,0.71]
[1758711970428,1.1845272,211.37,211.33,0.71]
[1758711970747,0.69,211.4,211.34,1.49207682]
[1758711970921,1.18448292,211.39,211.34,1.49207682]
[1758711971247,1.18448292,211.38,211.35,0.71]
[1758711971426,0.69,211.4,211.36,0.71]
[1758711971630,1.18447809,211.39,211.36,0.71]
[1758711971942,1.87447809,211.38,211.33,0.71]
[1758711972139,1.18450006,211.37,211.31,0.71]
[1758711972448,1.87450006,211.36,211.31,2.60622888]
[1758711972747,16.78336063,211.44,211.31,2.60622888]
[1758711972748,1.49207682,211.38,211.31,0.71]
[1758711972941,1.87457396,211.37,211.31,0.71]
[1758711973141,1.18457396,211.36,211.31,0.71]
[1758711973356,0.69,211.36,211.31,0.71]
[1758711974034,0.69,211.35,211.31,0.71]
[1758711974424,1.87457413,211.37,211.31,0.71]
[1758711974647,1.18457413,211.36,211.31,0.71]
[1758711974836,0.69,211.36,211.32,0.71]
[1758711975541,0.69,211.36,211.3,27.49207682]
[1758711975848,0.69,211.36,211.32,0.71]
[1758711976045,1.49207682,211.4,211.32,1.49207682]
[1758711976231,1.18457379,211.39,211.34,1.49207682]
[1758711976555,1.18457379,211.38,211.35,0.71]
[1758711976740,1.18457379,211.37,211.36,0.71]
[1758711977141,0.69,211.4,211.34,2.20207682]
[1758711977443,1.18447344,211.39,211.34,2.20207682]
[1758711977632,0.69,211.4,211.34,2.20207682]
[1758711977633,1.18447344,211.38,211.35,0.71]
[1758711977830,0.69,211.4,211.36,0.71]
[1758711978030,1.18447327,211.39,211.36,0.71]
[1758711978230,1.18447327,211.38,211.36,0.71]
[1758711978435,0.69,211.4,211.36,0.71]
[1758711978652,1.18447333,211.39,211.36,0.71]
[1758711978830,1.18447333,211.38,211.34,1.49207682]
[1758711979033,0.69,211.41,211.35,0.71]
[1758711979251,1.18447399,211.4,211.35,2.20207682]
[1758711979449,1.18447399,211.39,211.35,2.20207682]
[1758711979650,0.3,212.15,211.32,1.89622887]
[1758711979651,1.49207682,211.47,211.37,1.49207682]
[1758711979871,1.87437512,211.46,211.41,1.49207682]
[1758711980147,1.87437512,211.45,211.41,1.49207682]
[1758711980351,1.18437512,211.44,211.41,2.20207682]
[1758711980650,1.18437512,211.43,211.41,2.20207682]
[1758711980837,1.18437512,211.42,211.39,2.16207682]
[1758711981039,1.18437512,211.41,211.39,1.49207682]
[1758711981241,0.67,211.45,211.4,0.67]
[1758711981436,1.18426464,211.44,211.4,0.67]
[1758711981640,1.18426464,211.43,211.4,0.67]
[1758711981958,1.18426464,211.42,211.4,0.67]
[1758711982163,0.67,211.45,211.4,0.67]
[1758711982392,1.18425565,211.44,211.43,1.49207682]
[1758711982530,1.18425565,211.44,211.42,1.49207682]
[1758711982724,1.18425565,211.43,211.42,1.49207682]
[1758711982942,1.18425565,211.43,211.42,2.16207682]
[1758711983150,0.67,211.47,211.42,1.49207682]
[1758711983338,1.85423785,211.46,211.42,1.49207682]
[1758711983655,1.85423785,211.45,211.42,1.49207682]
[1758711983856,1.18423785,211.44,211.42,1.49207682]
[1758711984272,1.49207682,211.49,211.42,1.49207682]
[1758711984484,0.67,211.47,211.42,1.49207682]
[1758711984671,1.18423768,211.46,211.42,1.49207682]
[1758711984861,1.18423768,211.45,211.42,1.49207682]
[1758711985063,1.18423768,211.45,211.4,0.67]
[1758711985268,1.85423768,211.44,211.4,0.67]
[1758711985475,0.67,211.43,211.41,1.49207682]
[1758711985663,0.67,211.43,211.41,27.49207682]
[1758711985976,0.67,211.43,211.41,26.0]
[1758711986172,1.18423801,211.46,211.41,26.0]
[1758711986473,1.49207682,211.47,211.39,27.49207682]
[1758711986474,1.85423801,211.45,211.39,27.49207682]
[1758711986680,1.18423801,211.44,211.39,27.49207682]
[1758711986881,1.85423801,211.44,211.39,28.16207682]
[1758711987065,1.18423801,211.43,211.39,28.16207682]
[1758711987266,0.67,211.44,211.39,28.16207682]
[1758711987454,0.67,211.44,211.39,27.49207682]
[1758711987660,0.67,211.44,211.4,0.67]
[1758711987856,1.8542831,211.44,211.4,0.67]
[1758711988054,1.1842831,211.43,211.4,0.67]
[1758711988252,0.67,211.44,211.4,0.67]
[1758711988652,0.67,211.43,211.39,26.0]
[1758711988852,0.67,211.42,211.39,26.0]
[1758711989179,1.18428294,211.43,211.39,26.0]
[1758711989354,1.49207682,211.47,211.39,26.0]
[1758711989554,1.85429158,211.46,211.39,26.67]
[1758711989756,1.18429158,211.45,211.39,26.67]
[1758711989966,1.85429158,211.44,211.39,26.0]
[1758711990174,1.85429158,211.43,211.39,26.0]
[1758711990361,0.67,211.43,211.39,26.0]
[1758711991189,1.18429256,211.44,211.4,0.67]
[1758711991382,0.67,211.43,211.39,26.0]
[1758711991683,0.67,211.44,211.4,0.67]
[1758711991884,0.67,211.43,211.39,26.0]
[1758711992088,0.67,211.42,211.39,26.0]
[1758711992269,0.67,211.42,211.38,1.49207682]
[1758711992468,0.67,211.42,211.38,2.16207682]
[1758711992989,0.67,211.44,211.38,1.49207682]
[1758711993181,1.85432918,211.44,211.38,2.16207682]
[1758711993365,1.18432918,211.43,211.39,0.67]
[1758711993570,0.67,211.44,211.4,0.67]
[1758711994095,1.18432852,211.44,211.41,0.67]
[1758711994289,1.18432852,211.43,211.41,0.67]
[1758711994464,1.49207682,211.48,211.4,1.49207682]
[1758711994465,0.67,211.45,211.4,1.49207682]
[1758711994665,1.8543277,211.44,211.39,0.67]
[1758711994972,1.1843277,211.44,211.4,0.67]
[1758711995577,1.1843277,211.44,211.41,0.67]
[1758711996165,1.1843277,211.44,211.42,0.67]
[1758711996386,1.1843277,211.44,211.38,1.49207682]
[1758711996684,1.49207682,211.47,211.39,0.67]
[1758711996891,1.18427461,211.46,211.39,0.67]
[1758711997188,1.18427461,211.45,211.39,0.67]
[1758711997407,1.18427461,211.44,211.39,0.67]
[1758711997568,1.49207682,211.48,211.39,0.67]
[1758711997868,1.49207682,211.44,211.39,0.67]
[1758711998068,1.8542558,211.43,211.39,0.67]
[1758711998260,1.1842558,211.43,211.37,0.67]
[1758711998465,0.67,211.42,211.37,0.67]
[1758711998687,0.67,211.42,211.38,0.67]
[1758712000081,1.1842558,211.43,211.39,0.67]
[1758712000284,0.67,211.44,211.39,0.67]
[1758712001371,3.34636906,211.46,211.4,0.67]
[1758712001571,1.18429224,211.45,211.4,0.67]
[1758712001776,1.85429224,211.45,211.37,1.49207682]
[1758712001978,1.85429224,211.45,211.41,0.67]
[1758712002572,1.18429224,211.45,211.41,0.67]
[1758712002993,1.18429224,211.44,211.42,0.67]
[1758712003174,0.67,211.47,211.42,0.67]
[1758712003375,1.8542826,211.46,211.42,0.67]
[1758712003700,1.1842826,211.45,211.43,0.67]
[1758712003877,1.1842826,211.44,211.43,0.67]
[1758712004069,1.1842826,211.44,211.41,0.67]
[1758712004392,2.99985363,211.49,211.41,0.67]
[1758712004567,1.18426546,211.48,211.41,2.99985363]
[1758712004765,1.18426546,211.47,211.42,0.67]
[1758712004997,1.18426546,211.46,211.42,0.67]
[1758712005199,2.99985363,211.49,211.42,0.67]
[1758712005575,2.32985363,211.51,211.42,0.67]
[1758712005776,1.18398845,211.5,211.42,0.67]
[1758712006168,1.18398845,211.5,211.45,2.32985363]
[1758712006374,0.67,211.52,211.46,0.67]
[1758712006875,1.18388917,211.53,211.46,0.67]
[1758712007270,1.18388917,211.52,211.46,0.67]
[1758712007497,1.18388917,211.51,211.46,0.67]
[1758712007689,0.67,211.53,211.47,0.67]
[1758712007884,2.99985363,211.53,211.47,0.67]
[1758712008090,1.18388933,211.52,211.47,0.67]
[1758712008278,0.67,211.52,211.48,0.67]
[1758712008477,1.85388905,211.52,211.48,0.67]
[1758712009923,1.85388905,211.52,211.45,16.79541471]
[1758712010185,1.85388905,211.52,211.46,0.67]
[1758712010690,0.67,211.52,211.46,0.67]
[1758712010889,1.85388922,211.52,211.46,0.67]
[1758712014593,0.67,211.52,211.46,0.67]
[1758712016592,1.85388922,211.52,211.46,0.67]
[1758712016795,0.67,211.52,211.46,0.67]
[1758712017303,0.67,211.52,211.48,26.0]
[1758712017513,0.65,211.51,211.48,26.0]
[1758712018210,0.65,211.51,211.48,26.72]
[1758712018413,1.18388921,211.53,211.49,0.72]
[1758712018905,0.65,211.54,211.5,0.72]
[1758712019705,1.18387092,211.55,211.48,26.0]
[1758712020006,0.72,211.53,211.48,26.69]
[1758712020210,0.72,211.53,211.49,0.69]
[1758712020595,1.90387092,211.55,211.5,0.69]
[1758712020792,1.18387092,211.55,211.5,0.69]
[1758712020997,0.72,211.54,211.5,0.69]
[1758712021508,0.72,211.56,211.51,0.69]
[1758712021812,2.32985363,211.6,211.52,0.69]
[1758712021998,1.18368673,211.59,211.53,2.4720152]
[1758712022182,0.72,211.58,211.52,26.69]
[1758712022389,0.72,211.58,211.53,0.69]
[1758712022615,0.72,211.58,211.54,0.69]
[1758712023616,2.32985363,211.6,211.52,28.32985363]
[1758712023822,2.32985363,211.6,211.49,2.32985363]
[1758712023823,0.72,211.57,211.49,2.32985363]
[1758712023991,0.72,211.56,211.49,29.01985363]
[1758712024187,0.72,211.55,211.49,26.69]
[1758712024386,0.72,211.54,211.46,13.59559401]
[1758712024612,0.72,211.53,211.45,15.15556108]
[1758712024813,3.04985363,211.52,211.46,2.32985363]
[1758712025111,3.04985363,211.52,211.43,0.69]
[1758712025112,0.72,211.51,211.43,0.69]
[1758712025709,2.32985363,211.5,211.43,0.69]
[1758712026007,0.72,211.49,211.43,0.69]
[1758712026213,0.72,211.49,211.43,14.44340584]
[1758712026397,2.32985363,211.46,211.38,0.69]
[1758712026603,0.72,211.45,211.38,0.69]
[1758712027394,0.72,211.45,211.38,14.62660005]
[1758712027594,0.72,211.44,211.38,14.62660005]
[1758712027893,0.72,211.44,211.41,26.0]
[1758712028415,0.72,211.43,211.41,26.0]
[1758712028614,0.72,211.43,211.38,14.62660005]
[1758712028924,13.59559401,211.52,211.38,14.62660005]
[1758712028925,0.72,211.42,211.38,16.26645368]
[1758712029109,2.32985363,211.47,211.38,16.26645368]
[1758712029318,0.72,211.41,211.38,16.26645368]
[1758712030208,1.1843078,211.44,211.4,2.32985363]
[1758712030513,0.72,211.47,211.42,2.32985363]
[1758712030716,0.72,211.46,211.42,2.32985363]
[1758712030916,1.18427085,211.48,211.42,2.32985363]
[1758712031224,0.72,211.47,211.42,2.32985363]
[1758712031717,0.72,211.46,211.39,3.01985363]
[1758712031899,0.72,211.45,211.39,2.32985363]
[1758712032102,0.72,211.44,211.39,2.32985363]
[1758712032315,0.72,211.44,211.39,3.01985363]
[1758712034017,0.72,211.43,211.37,2.32985363]
[1758712034207,0.72,211.42,211.37,2.32985363]
[1758712034724,0.72,211.41,211.37,2.32985363]
[1758712034919,0.72,211.41,211.37,3.01985363]
[1758712035224,1.90427085,211.44,211.38,0.69]
[1758712035425,0.72,211.44,211.38,0.69]
[1758712036208,0.72,211.44,211.37,2.32985363]
[1758712036406,0.72,211.43,211.37,2.32985363]
[1758712036609,0.72,211.42,211.34,26.0]
[1758712036809,0.72,211.41,211.34,29.01985363]
[1758712037011,0.72,211.41,211.35,0.69]
[1758712037211,0.72,211.41,211.35,14.55608515]
[1758712037428,0.72,211.41,211.36,2.32985363]
[1758712037733,0.72,211.45,211.38,2.32985363]
[1758712037935,0.72,211.45,211.39,0.69]
[1758712038834,1.1843524,211.46,211.4,2.32985363]
[1758712039133,1.1843524,211.46,211.4,3.01985363]
[1758712039635,1.9043524,211.46,211.4,3.01985363]
[1758712040306,1.9043524,211.46,211.38,26.0]
[1758712040307,0.72,211.45,211.38,29.01985363]
[1758712040933,0.72,211.45,211.38,26.69]
[1758712041232,0.72,211.45,211.38,29.01985363]
[1758712041429,0.72,211.45,211.39,0.66]
[1758712041815,1.9043524,211.45,211.39,0.66]
[1758712042940,0.67,211.47,211.39,0.66]
[1758712043112,0.67,211.45,211.39,0.66]
[1758712043435,1.85427261,211.45,211.39,0.66]
[1758712047118,1.85427261,211.45,211.38,28.32985363]
[1758712047119,1.85427261,211.45,211.38,28.98985363]
[1758712047321,0.67,211.48,211.42,2.32985363]
[1758712047644,0.67,211.48,211.42,2.98985363]
[1758712048353,0.67,211.47,211.42,2.98985363]
[1758712048530,0.67,211.46,211.42,2.98985363]
[1758712049934,1.18425135,211.49,211.43,0.66]
[1758712050239,1.85425135,211.48,211.42,2.32985363]
[1758712050540,1.18425135,211.47,211.42,2.98985363]
[1758712050737,1.18425135,211.46,211.42,2.98985363]
[1758712050934,0.67,211.48,211.43,0.66]
[1758712052725,1.18423502,211.49,211.44,0.66]
[1758712053039,1.18423502,211.49,211.42,2.32985363]
[1758712053040,2.32985363,211.58,211.48,2.32985363]
[1758712053341,0.67,211.56,211.5,2.32985363]
[1758712053548,0.67,211.56,211.5,2.98985363]
[1758712053725,0.67,211.55,211.5,2.98985363]
[1758712053926,0.67,211.54,211.5,2.98985363]
[1758712054337,1.18381958,211.56,211.52,2.32985363]
[1758712054645,1.85381958,211.55,211.5,2.98985363]
[1758712054847,0.67,211.54,211.5,2.98985363]
[1758712055855,0.67,211.56,211.5,2.98985363]
[1758712056219,1.18374599,211.59,211.5,2.98985363]
[1758712056531,0.67,211.65,211.56,2.32985363]
[1758712056731,0.67,211.65,211.57,0.66]
[1758712056732,1.85352175,211.64,211.57,0.66]
[1758712057223,4.18337538,211.64,211.57,0.66]
[1758712057427,1.18352175,211.63,211.57,0.66]
[1758712058245,1.18352175,211.62,211.57,0.66]
[1758712058550,1.18352175,211.61,211.58,0.66]
[1758712058724,1.18352175,211.6,211.58,0.66]